fUST/lending_fUST_20250920
["ID","MTS","AMOUNT","RATE_DAILY","PERIOD"]
[386501020,1758323439577,-151.0,0.00025788,2]
[386501022,1758323439587,-554.87724383,0.00025788,2]
[386501024,1758323439597,-151.0,0.00025788,2]
[386501026,1758323439606,-500.0,0.00025788,2]
[386501028,1758323439615,-151.0,0.00025788,2]
[386501030,1758323439624,-151.0,0.00025788,2]
[386501031,1758323439634,-500.0,0.00025788,2]
[386501033,1758323439644,-151.0,0.00025788,2]
[386501035,1758323439653,-250.49551392,0.00025788,2]
[386501037,1758323439663,-500.0,0.00025788,2]
[386501039,1758323439672,-216.0,0.0002581,2]
[386501041,1758323439681,-168.0,0.00025846,2]
[386501043,1758323439690,-168.0,0.00025846,2]
[386501045,1758323439699,-2295.54,0.00026,7]
[386501047,1758323439708,-1039.42,0.00026031,2]
[386501049,1758323439718,-625.32,0.00026031,2]
[386501051,1758323439727,-606.64,0.00026031,2]
[386501053,1758323439736,-524.76,0.00026031,2]
[386501055,1758323439745,-515.05,0.00026031,2]
[386501056,1758323439755,-871.51,0.00026031,2]
[386501058,1758323439764,-519.41,0.00026031,2]
[386501060,1758323439774,-216.0,0.00026031,7]
[386501062,1758323439783,-480.0,0.00026032,2]
[386501064,1758323439792,-492.91,0.00026033,2]
[386501066,1758323439802,-701.93,0.00026033,2]
[386501068,1758323439812,-3269.32,0.00026033,2]
[386501070,1758323439822,-480.0,0.00026033,2]
[386501072,1758323439831,-956.69,0.00026037,2]
[386501074,1758323439840,-169.0,0.00026062,2]
[386501076,1758323439850,-253.25824784,0.00026062,2]
[386501078,1758323439859,-151.0,0.00026062,2]
[386501080,1758323439868,-151.0,0.00026062,2]
[386501082,1758323439877,-500.0,0.00026062,2]
[386501083,1758323439886,-227.38158039,0.00026062,2]
[386501085,1758323439896,-151.0,0.00026062,2]
[386501087,1758323439905,-151.0,0.00026062,2]
[386501089,1758323439915,-500.0,0.00026062,2]
[386501091,1758323439924,-151.0,0.00026062,2]
[386501093,1758323439933,-151.0,0.00026062,2]
[386501095,1758323439942,-500.0,0.00026062,2]
[386501097,1758323439952,-157.0,0.00026062,2]
[386501099,1758323439961,-500.0,0.00026062,2]
[386501101,1758323439970,-1004.12729615,0.00026068,2]
[386501103,1758323439979,-504.0126241,0.00026068,2]
[386501105,1758323439988,-216.0,0.00026205,2]
[386501107,1758323439998,-2074.88,0.00026207,2]
[386501108,1758323440007,-760.0,0.00026243,2]
[386501110,1758323440016,-1000.0,0.00026257,2]
[386501112,1758323440026,-1000.0,0.00026257,2]
[386501114,1758323440035,-1000.0,0.00026257,2]
[386501116,1758323440044,-216.0,0.0002629,2]
[386501118,1758323440054,-1039.42,0.00026305,2]
[386501120,1758323440063,-625.32,0.00026305,2]
[386501122,1758323440072,-606.64,0.00026305,2]
[386501124,1758323440081,-524.76,0.00026305,2]
[386501126,1758323440091,-515.05,0.00026305,2]
[386501128,1758323440099,-871.51,0.00026305,2]
[386501130,1758323440109,-519.41,0.00026305,2]
[386501132,1758323440118,-599.61,0.00026306,2]
[386501133,1758323440128,-701.93,0.00026307,2]
[386501135,1758323440138,-3269.32,0.00026307,2]
[386501137,1758323440147,-480.0,0.00026307,2]
[386501139,1758323440157,-956.69,0.00026311,2]
[386501141,1758323440166,-298.30891944,0.00026336,2]
[386501143,1758323440176,-500.0,0.00026336,2]
[386501145,1758323440185,-175.77017753,0.00026336,2]
[386501147,1758323440194,-293.97996017,0.00026336,2]
[386501149,1758323440203,-151.0,0.00026336,2]
[386501151,1758323440212,-248.58799711,0.00026336,2]
[386501153,1758323440221,-500.0,0.00026336,2]
[386501155,1758323440230,-500.0,0.00026336,2]
[386501157,1758323440240,-500.0,0.00026384,2]
[386501159,1758323440249,-168.0,0.00026442,2]
[386501161,1758323440259,-151.53090644,0.00026573,2]
[386501163,1758323440269,-1039.42,0.00026579,2]
[386501164,1758323440279,-625.32,0.00026579,2]
[386501166,1758323440288,-606.64,0.00026579,2]
[386501168,1758323440298,-524.76,0.00026579,2]
[386501170,1758323440307,-515.05,0.00026579,2]
[386501172,1758323440317,-871.51,0.00026579,2]
[386501174,1758323440327,-519.41,0.00026579,2]
[386501176,1758323440338,-701.93,0.00026581,2]
[386501178,1758323440352,-3269.32,0.00026581,2]
[386501180,1758323440362,-480.0,0.00026581,2]
[386501182,1758323440371,-956.69,0.00026585,2]
[386501183,1758323440381,-155.09,0.00026593,7]
[386501184,1758323440391,-699.32,0.00026593,7]
[386501185,1758323440400,-500.0,0.0002661,2]
[386501186,1758323440410,-271.3650232,0.0002661,2]
[386501187,1758323440419,-500.0,0.0002661,2]
[386501188,1758323440428,-500.0,0.0002661,2]
[386501189,1758323440438,-155.09,0.00026693,7]
[386501190,1758323440447,-699.32,0.00026693,7]
[386501191,1758323440456,-2305.0,0.00026714,2]
[386501192,1758323440464,-860.0,0.00026791,2]
[386501193,1758323440474,-155.09,0.00026793,7]
[386501194,1758323440483,-699.32,0.00026793,7]
[386501195,1758323440492,-1210.37736818,0.00026805,2]
[386501196,1758323440504,-500.0,0.00026805,2]
[386501197,1758323440513,-1500.0,0.00026805,2]
[386501198,1758323440522,-168.0,0.00026819,2]
[386501199,1758323440531,-168.0,0.00026845,2]
[386501200,1758323440540,-1039.42,0.00026853,2]
[386501201,1758323440549,-625.32,0.00026853,2]
[386501202,1758323440558,-606.64,0.00026853,2]
[386501203,1758323440567,-524.76,0.00026853,2]
[386501204,1758323440577,-515.05,0.00026853,2]
[386501205,1758323440586,-871.51,0.00026853,2]
[386501206,1758323440595,-519.41,0.00026853,2]
[386501207,1758323440604,-701.93,0.00026855,2]
[386501208,1758323440613,-3269.32,0.00026855,2]
[386501209,1758323440622,-420.23,0.00026855,2]
[386501210,1758323440631,-956.69,0.00026859,2]
[386501211,1758323440640,-168.0,0.00026881,2]
[386501212,1758323440650,-500.0,0.00026884,2]
[386501213,1758323440658,-514.31691441,0.00026884,2]
[386501214,1758323440764,-500.0,0.00026884,2]
[386501215,1758323440775,-155.09,0.00026893,7]
[386501216,1758323440784,-699.32,0.00026893,7]
[386501217,1758323440794,-719.73321595,0.00026969,2]
[386501218,1758323440804,-155.09,0.00026993,7]
[386501219,1758323440813,-699.32,0.00026993,7]
[386501220,1758323440822,-216.0,0.00027016,2]
[386501221,1758323440832,-168.0,0.00027078,2]
[386501222,1758323440841,-155.09,0.00027093,7]
[386501223,1758323440850,-699.32,0.00027093,7]
[386501224,1758323440859,-1039.42,0.00027127,2]
[386501225,1758323440868,-625.32,0.00027127,2]
[386501226,1758323440877,-606.64,0.00027127,2]
[386501227,1758323440886,-524.76,0.00027127,2]
[386501228,1758323440895,-515.05,0.00027127,2]
[386501229,1758323440904,-871.51,0.00027127,2]
[386501230,1758323440913,-519.41,0.00027127,2]
[386501231,1758323440923,-701.93,0.00027129,2]
[386501232,1758323440932,-3269.32,0.00027129,2]
[386501233,1758323440941,-956.69,0.00027133,2]
[386501234,1758323440950,-500.0,0.00027158,2]
[386501235,1758323440960,-500.0,0.00027158,2]
[386501236,1758323440969,-155.09,0.00027193,7]
[386501237,1758323440978,-699.32,0.00027193,7]
[386501238,1758323440987,-848.13460282,0.000272,7]
[386501239,1758323440996,-233.43972884,0.000272,7]
[386501240,1758323441004,-160.0,0.000272,7]
[386501241,1758323441013,-217.99592756,0.000272,7]
[386501242,1758323441023,-155.12731143,0.00027293,7]
[386501243,1758323441031,-699.32,0.00027293,7]
[386501244,1758323441040,-960.0,0.00027339,2]
[386501245,1758323441049,-1000.0,0.00027353,2]
[386501246,1758323441058,-699.32,0.00027393,7]
[386501247,1758323441067,-220.38918424,0.00027397,2]
[386501248,1758323441076,-160.6385961,0.00027397,2]
[386501249,1758323441085,-150.0,0.00027397,5]
[386501250,1758323441094,-1039.63191704,0.00027401,2]
[386501251,1758323441103,-625.45,0.00027401,2]
[386501252,1758323441112,-606.84,0.00027401,2]
[386501253,1758323441121,-524.86,0.00027401,2]
[386501254,1758323441130,-515.09,0.00027401,2]
[386501255,1758323441139,-871.51,0.00027401,2]
[386501256,1758323441149,-519.62970408,0.00027401,2]
[386501257,1758323441158,-702.02,0.00027403,2]
[386501258,1758323441167,-3269.4577937,0.00027403,2]
[386501259,1758323441176,-956.87167737,0.00027407,2]
[386501260,1758323441186,-500.0,0.00027432,2]
[386501261,1758323441195,-500.0,0.00027432,2]
[386501262,1758323441204,-800.0,0.00027486,2]
[386501263,1758323441213,-800.0,0.00027491,2]
[386501264,1758323441223,-699.32,0.00027493,15]
[386501265,1758323441232,-150.0,0.00027539,2]
[386501266,1758323441242,-216.0,0.00027565,2]
[386501267,1758323441251,-699.32,0.00027593,15]
[386501269,1758323441261,-800.0,0.00027663,2]
[386501271,1758323441271,-500.0,0.00027683,2]
[386501273,1758323441281,-699.32,0.00027693,15]
[386501275,1758323441290,-2295.54,0.000277,7]
[386501277,1758323441300,-500.0,0.00027705,2]
[386501279,1758323441309,-500.0,0.00027706,2]
[386501281,1758323441320,-500.0,0.00027706,2]
[386501283,1758323441329,-995.27524671,0.00027715,2]
[386501285,1758323441338,-500.0,0.0002775,2]
[386501287,1758323441347,-800.0,0.00027782,2]
[386501289,1758323441357,-800.0,0.0002779,2]
[386501291,1758323441366,-699.32,0.00027793,15]
[386501293,1758323441375,-168.0,0.00027796,2]
[386501295,1758323441385,-1060.0,0.00027887,2]
[386501297,1758323441395,-699.32,0.00027893,15]
[386501299,1758323441412,-500.0,0.00027923,2]
[386501301,1758323441423,-250.0,0.00027945,5]
[386501303,1758323441432,-800.0,0.00027976,2]
[386501305,1758323441442,-500.0,0.0002798,2]
[386501307,1758323441451,-500.0,0.0002798,2]
[386501309,1758323441461,-800.0,0.00027983,2]
[386501311,1758323441471,-699.32,0.00027993,15]
[386501313,1758323441480,-500.0,0.00027999,2]
[386501315,1758323441490,-1055.04,0.00028,2]
[386501317,1758323441501,-500.0,0.00028032,2]
[386501319,1758323441510,-500.0,0.0002804,2]
[386501321,1758323441519,-800.0,0.00028084,2]
[386501323,1758323441529,-500.0,0.0002809,2]
[386501325,1758323441538,-699.32,0.00028093,15]
[386501326,1758323441548,-500.0,0.00028102,2]
[386501328,1758323441558,-657.50703977,0.00028139,2]
[386501330,1758323441567,-236.75575842,0.00028139,2]
[386501332,1758323441578,-946.07601066,0.00028139,2]
[386501334,1758323441588,-1055.04,0.0002814,2]
[386501336,1758323441598,-500.0,0.0002815,2]
[386501338,1758323441611,-719.73321595,0.00028161,2]
[386501340,1758323441621,-500.0,0.00028181,2]
[386501342,1758323441632,-699.32,0.00028193,15]
[386501344,1758323441641,-155.0,0.000282,120]
[386501346,1758323441650,-500.0,0.00028206,2]
[386501348,1758323441660,-600.0,0.00028222,2]
[386501349,1758323441669,-977.0,0.00028244,2]
[386501351,1758323441679,-2158.0,0.00028244,2]
[386501353,1758323441689,-634.0,0.00028244,2]
[386501355,1758323441699,-410.0,0.00028244,2]
[386501357,1758323441708,-410.0,0.00028244,2]
[386501359,1758323441718,-500.0,0.00028254,2]
[386501361,1758323441727,-500.0,0.00028254,2]
[386501363,1758323441736,-800.0,0.00028261,2]
[386501365,1758323441746,-500.0,0.00028276,2]
[386501367,1758323441755,-1055.04,0.0002828,2]
[386501369,1758323441764,-699.32,0.00028293,15]
[386501371,1758323441774,-500.0,0.00028317,2]
[386501372,1758323441785,-500.0,0.00028322,2]
[386501374,1758323441794,-5000.0,0.00028361,15]
[386501376,1758323441805,-5000.0,0.00028361,14]
[386501378,1758323441814,-5000.0,0.00028361,14]
[386501380,1758323441824,-5000.0,0.00028361,17]
[386501382,1758323441834,-5000.0,0.00028361,15]
[386501384,1758323441843,-800.0,0.0002837,2]
[386501386,1758323441852,-699.32,0.00028393,15]
[386501388,1758323441862,-1055.04,0.0002842,2]
[386501389,1758323441871,-580.0,0.00028435,2]
[386501391,1758323441880,-500.0,0.0002845,2]
[386501393,1758323441889,-699.32,0.00028493,15]
[386501395,1758323441898,-350.0,0.00028493,5]
[386501397,1758323441908,-482.81133343,0.00028502,2]
[386501399,1758323441917,-800.0,0.00028507,2]
[386501401,1758323441927,-898.93599219,0.00028516,2]
[386501403,1758323441936,-500.0,0.00028528,2]
[386501405,1758323441946,-500.0,0.00028528,2]
[386501407,1758323441955,-1055.04,0.0002856,2]
[386501409,1758323441964,-500.0,0.00028576,7]
[386501411,1758323441974,-500.0,0.00028576,2]
[386501413,1758323441983,-800.0,0.00028581,2]
[386501415,1758323441993,-699.32,0.00028593,15]
[386501417,1758323442002,-500.0,0.00028595,2]
[386501419,1758323442011,-500.0,0.00028595,2]
[386501421,1758323442020,-800.0,0.00028596,2]
[386501423,1758323442030,-500.0,0.00028606,2]
[386501425,1758323442039,-150.0,0.00028614,2]
[386501427,1758323442048,-800.0,0.00028636,2]
[386501429,1758323442057,-500.0,0.00028659,2]
[386501431,1758323442067,-699.32,0.00028693,15]
[386501432,1758323442076,-1055.04,0.000287,2]
[386501434,1758323442085,-699.32,0.00028793,15]
[386501436,1758323442095,-500.0,0.00028794,2]
[386501439,1758323442105,-500.0,0.00028802,2]
[386501441,1758323442114,-500.0,0.00028802,2]
[386501443,1758323442123,-800.0,0.00028804,2]
[386501445,1758323442133,-500.0,0.0002884,2]
[386501446,1758323442143,-1055.04,0.0002884,2]
[386501448,1758323442152,-500.0,0.00028841,2]
[386501450,1758323442161,-200.0,0.00028875,120]
[386501452,1758323442171,-500.0,0.00028892,2]
[386501454,1758323442180,-699.32,0.00028893,15]
[386501456,1758323442189,-800.0,0.00028955,2]
[386501458,1758323442199,-1055.04,0.0002898,2]
[386501460,1758323442208,-699.32,0.00028993,15]
[386501462,1758323442218,-800.0,0.00029031,2]
[386501464,1758323442227,-500.0,0.00029035,2]
[386501466,1758323442236,-450.0,0.00029041,5]
[386501468,1758323442245,-166.35424728,0.00029041,120]
[386501470,1758323442255,-500.0,0.00029055,2]
[386501472,1758323442264,-500.0,0.00029076,2]
[386501474,1758323442274,-547.72309064,0.00029076,2]
[386501476,1758323442283,-699.32,0.00029093,15]
[386501478,1758323442292,-500.0,0.00029094,2]
[386501480,1758323442302,-1055.04,0.0002912,30]
[386501482,1758323442311,-800.0,0.00029172,2]
[386501484,1758323442321,-705.65337843,0.00029176,2]
[386501486,1758323442331,-699.32,0.00029193,15]
[386501488,1758323442340,-500.0,0.00029234,2]
[386501490,1758323442351,-1164.86558335,0.0002924,2]
[386501492,1758323442360,-500.0,0.00029241,2]
[386501494,1758323442370,-6111.81689471,0.00029255,2]
[386501496,1758323442379,-1055.04,0.0002926,30]
[386501498,1758323442388,-500.0,0.00029292,2]
[386501500,1758323442398,-699.32,0.00029293,15]
[386501502,1758323442407,-2000.0,0.000293,2]
[386501504,1758323442416,-2000.0,0.000293,2]
[386501506,1758323442425,-2295.54,0.000293,7]
[386501508,1758323442435,-250.0,0.000293,10]
[386501510,1758323442444,-204.831726,0.000293,2]
[386501511,1758323442453,-500.0,0.00029333,2]
[386501513,1758323442462,-500.0,0.00029338,2]
[386501515,1758323442471,-151.0,0.0002934,7]
[386501517,1758323442480,-1292.0,0.0002934,30]
[386501519,1758323442490,-161.0,0.0002935,2]
[386501521,1758323442499,-719.73321595,0.00029354,2]
[386501523,1758323442508,-4367.84329225,0.00029355,2]
[386501525,1758323442517,-1540359.72884118,0.00029355,20]
[386501535,1758323442578,-320.64449073,0.00029355,20]
[386501541,1758323442611,-456.4,0.00021099,2]
[386501543,1758323442623,-23.6,0.00021099,2]
[386501545,1758323442633,-480.0,0.00021373,2]
[386501547,1758323442642,-68.725,0.0002521,2]
[386501550,1758323442654,-2133.055,0.0002521,2]
[386501552,1758323442663,-2201.78,0.00025484,2]
[386501554,1758323442673,-2665.811733,0.00029355,20]
[386501556,1758323442684,-6344.89576472,0.00029355,20]
[386501558,1758323442695,-460.95174316,0.00029355,20]
[386501571,1758323442820,-86981.5145354,0.00029355,20]
[386501574,1758323442831,-5200.35415947,0.00029355,20]
[386501605,1758323443137,-270.0,0.00021099,2]
[386501917,1758323446192,-210.0,0.00021099,2]
[386501919,1758323446201,-480.0,0.00021099,2]
[386501921,1758323446211,-480.0,0.00021099,2]
[386501923,1758323446220,-480.0,0.00021099,2]
[386501925,1758323446230,-428.12504581,0.00021099,2]
[386501927,1758323446239,-633.65916739,0.00021099,2]
[386501929,1758323446248,-480.0,0.00021373,2]
[386501931,1758323446258,-517.13806806,0.00021373,2]
[386501933,1758323446268,-206.83,0.00021373,2]
[386501935,1758323446277,-2201.78,0.00025758,2]
[386501937,1758323446286,-2201.78,0.00026032,2]
[386501939,1758323446296,-2201.78,0.00026306,2]
[386501941,1758323446305,-2201.78,0.0002658,2]
[386501943,1758323446315,-2201.78,0.00026854,2]
[386501944,1758323446324,-2201.78,0.00027128,2]
[386501945,1758323446333,-2201.88,0.00027402,2]
[386501946,1758323446342,-21907.20473458,0.00029355,20]
[386503228,1758323549483,-300.0,0.00021098,2]
[386503229,1758323549512,-480.0,0.00021099,2]
[386503230,1758323549546,-480.0,0.00021099,2]
[386503231,1758323549574,-480.0,0.00021099,2]
[386503232,1758323549605,-480.0,0.00021099,2]
[386503233,1758323549634,-480.0,0.00021099,2]
[386503234,1758323549664,-480.0,0.00021099,2]
[386503235,1758323549695,-480.0,0.00021099,2]
[386503236,1758323549725,-480.0,0.00021099,2]
[386503237,1758323549756,-480.0,0.00021099,2]
[386503238,1758323549786,-280.01,0.00021099,2]
[386503239,1758323549865,-199.99,0.00021099,2]
[386503240,1758323549892,-480.0,0.00021099,2]
[386503241,1758323549921,-480.0,0.00021099,2]
[386503242,1758323549948,-480.0,0.00021099,2]
[386503243,1758323549975,-480.0,0.00021099,2]
[386503244,1758323550004,-480.0,0.00021099,2]
[386503245,1758323550033,-480.0,0.00021099,2]
[386503246,1758323550062,-480.0,0.00021099,2]
[386503247,1758323550089,-480.0,0.00021099,2]
[386503248,1758323550118,-480.0,0.00021099,2]
[386503249,1758323550147,-480.0,0.00021099,2]
[386503250,1758323550457,-199.99,0.00021099,2]
[386503251,1758323550468,-0.03,0.00021099,2]
[386503252,1758323586806,1540.74823905,0.00029355,60]
[386503254,1758323618926,-300.0,0.00021097,2]
[386503255,1758323618955,-500.0,0.00021098,2]
[386503256,1758323618986,-389.31104837,0.00021098,2]
[386503257,1758323619014,-500.0,0.00021098,2]
[386503258,1758323619041,-500.0,0.00021098,2]
[386503259,1758323619068,-500.0,0.00021098,2]
[386503260,1758323619098,-500.0,0.00021098,2]
[386503261,1758323619125,-500.0,0.00021098,2]
[386503262,1758323619153,-500.0,0.00021098,2]
[386503263,1758323619183,-500.0,0.00021098,2]
[386503264,1758323619311,-198.13743008,0.00021098,2]
[386503265,1758323619446,-225.1130431,0.00021098,2]
[386503266,1758323619481,-534.74008437,0.00021098,2]
[386503267,1758323619512,-500.0,0.00021098,2]
[386503268,1758323619542,-374.73461661,0.00021098,2]
[386503269,1758323619577,-464.6399541,0.00021098,2]
[386503270,1758323619605,-279.98,0.00021099,2]
[386503271,1758323619635,-495.05354171,0.00021099,2]
[386503272,1758323619665,-480.0,0.00021099,2]
[386503273,1758323619698,-480.0,0.00021099,2]
[386503274,1758323619733,-480.0,0.00021099,2]
[386503275,1758323619766,-480.0,0.00021099,2]
[386503276,1758323620182,-339.37457071,0.00021099,2]
[386503277,1758323620197,-140.62542929,0.00021099,2]
[386503278,1758323620207,-270.86209093,0.00021099,2]
[386503279,1758323651696,-300.0,0.00021098,2]
[386503280,1758323651726,-218.44355183,0.00021099,2]
[386503281,1758323651755,-391.6,0.00021099,2]
[386503282,1758323651785,-480.0,0.00021099,2]
[386503283,1758323651818,-480.0,0.00021099,2]
[386503284,1758323651848,-480.0,0.00021099,2]
[386503285,1758323651878,-480.0,0.00021099,2]
[386503286,1758323651908,-480.0,0.00021099,2]
[386503287,1758323651938,-480.0,0.00021099,2]
[386503289,1758323651971,-480.0,0.00021099,2]
[386503290,1758323652003,-480.0,0.00021099,2]
[386503291,1758323652035,-19.92289634,0.00021099,2]
[386503292,1758323652267,-460.07710366,0.00021099,2]
[386503295,1758323726734,-480.0,0.00021099,2]
[386503296,1758323726768,-312.67456473,0.00021099,2]
[386503297,1758323726802,-480.0,0.00021099,2]
[386503298,1758323726834,-480.0,0.00021099,2]
[386503299,1758323726866,-480.0,0.00021099,2]
[386503300,1758323726899,-480.0,0.00021099,2]
[386503301,1758323726931,-480.0,0.00021099,2]
[386503302,1758323726964,-480.0,0.00021099,2]
[386503303,1758323726998,-480.0,0.00021099,2]
[386503304,1758323727029,-480.0,0.00021099,2]
[386503305,1758323727062,-254.66087054,0.00021099,2]
[386503306,1758323727247,-225.33912946,0.00021099,2]
[386503307,1758323787026,153.0,0.00024,120]
[386503308,1758323788459,153.0,0.000262,120]
[386503309,1758323811844,-486.88191212,0.00021099,2]
[386503310,1758323811877,-480.0,0.00021099,2]
[386503311,1758323811910,-484.09367952,0.00021099,2]
[386503312,1758323811941,-480.0,0.00021099,2]
[386503313,1758323811973,-480.0,0.00021099,2]
[386503314,1758323812004,-480.0,0.00021099,2]
[386503315,1758323812034,-480.0,0.00021099,2]
[386503316,1758323812069,-480.0,0.00021099,2]
[386503317,1758323812101,-480.0,0.00021099,2]
[386503318,1758323812134,-480.0,0.00021099,2]
[386503319,1758323812309,-378.05881672,0.00021099,2]
[386503320,1758323835864,-101.94118328,0.00021099,2]
[386503321,1758323835895,-480.0,0.00021099,2]
[386503322,1758323835925,-480.0,0.00021099,2]
[386503323,1758323835959,-480.0,0.00021099,2]
[386503324,1758323835993,-519.62970408,0.00021099,2]
[386503325,1758323836025,-480.0,0.00021099,2]
[386503326,1758323836059,-480.0,0.000211,2]
[386503327,1758323836093,-480.0,0.000211,2]
[386503328,1758323836126,-480.0,0.000211,2]
[386503329,1758323836156,-618.59594588,0.000211,2]
[386503330,1758323836188,-319.67633352,0.000211,2]
[386503331,1758323836425,-160.32366648,0.000211,2]
[386503334,1758323864842,-480.0,0.000211,2]
[386503335,1758323864872,-201.72561784,0.000211,2]
[386503336,1758323864904,-500.0,0.000211,2]
[386503337,1758323864935,-500.0,0.000211,2]
[386503338,1758323864970,-500.0,0.000211,2]
[386503339,1758323865002,-534.74008437,0.000211,2]
[386503340,1758323865033,-494.93973353,0.000211,2]
[386503341,1758323865067,-500.0,0.000211,2]
[386503342,1758323865105,-500.0,0.000211,2]
[386503343,1758323865137,-623.85467772,0.000211,2]
[386503344,1758323865320,-329.48977308,0.000211,2]
[386503345,1758323892049,-480.0,0.00021099,2]
[386503346,1758323892080,-480.0,0.00021099,2]
[386503347,1758323892112,-232.08114494,0.000211,2]
[386503348,1758323892142,-480.0,0.000211,2]
[386503349,1758323892171,-415.46781608,0.000211,2]
[386503350,1758323892202,-500.0,0.000211,2]
[386503351,1758323892234,-500.0,0.000211,2]
[386503352,1758323892265,-516.24147865,0.000211,2]
[386503353,1758323892295,-500.0,0.000211,2]
[386503354,1758323892326,-500.0,0.000211,2]
[386503355,1758323892359,-292.42912066,0.000211,2]
[386503356,1758323892557,-207.57087934,0.000211,2]
[386503363,1758324162822,195.915342,0.00020272,2]
[386503401,1758324495694,-0.01,0.00021,5]
[386503402,1758324495728,-9804.074658,0.00021,5]
[386503410,1758324545168,-195.915342,0.00021,5]
[386503411,1758324545190,-274.484658,0.00021,2]
[386503412,1758324566114,-225.515342,0.00021,2]
[386503413,1758324566139,-339.53174721,0.00021,2]
[386503426,1758324632397,-160.46825279,0.00021,2]
[386503427,1758324632406,-500.0,0.00021,2]
[386503428,1758324632415,-480.0,0.00021099,2]
[386503429,1758324632425,-480.0,0.00021099,2]
[386503430,1758324632434,-541.85407632,0.00021099,2]
[386503431,1758324632443,-416.32844465,0.00021099,2]
[386503432,1758324632454,-63.67155535,0.00021099,2]
[386503433,1758324632464,-480.0,0.00021099,2]
[386503434,1758324632473,-480.0,0.00021099,2]
[386503435,1758324632483,-1119.37,0.00021099,2]
[386503436,1758324632493,-444.90046794,0.00021172,2]
[386503438,1758324632503,-151.66680255,0.00021261,2]
[386503440,1758324632512,-827.55,0.00021264,3]
[386503442,1758324632521,-480.0,0.00021266,2]
[386503444,1758324632531,-500.0,0.00021267,2]
[386503445,1758324632540,-500.0,0.00021267,2]
[386503447,1758324632549,-500.0,0.00021267,2]
[386503450,1758324632558,-500.0,0.00021267,2]
[386503453,1758324632567,-314.72039681,0.00021267,2]
[386503456,1758324632577,-500.0,0.00021267,2]
[386503458,1758324632586,-500.0,0.00021267,2]
[386503460,1758324632596,-500.0,0.00021267,2]
[386503463,1758324632606,-500.0,0.00021267,2]
[386503466,1758324632615,-500.0,0.00021267,2]
[386503468,1758324632624,-500.0,0.00021267,2]
[386503470,1758324632634,-500.0,0.00021267,2]
[386503472,1758324632643,-500.0,0.00021267,2]
[386503474,1758324632652,-500.0,0.00021267,2]
[386503476,1758324632661,-500.0,0.00021267,2]
[386503478,1758324632671,-500.0,0.00021267,2]
[386503480,1758324632680,-500.0,0.00021267,2]
[386503482,1758324632690,-500.0,0.00021267,2]
[386503484,1758324632699,-500.0,0.00021267,2]
[386503485,1758324632708,-500.0,0.00021267,2]
[386503487,1758324632717,-500.0,0.00021267,2]
[386503488,1758324632726,-211.17623627,0.00021267,2]
[386503489,1758324632736,-500.0,0.00021267,2]
[386503490,1758324632745,-500.0,0.00021267,2]